[Event "Titled Tuesday Blitz August 08 Early 2023"]
[White "Jodorcovsky Werjivker, Paulo"]
[Black "Thecourseoisildur"]
[WhiteFideId "3700305"]
[WhiteElo "2169"]
[BlackElo "2560"]
[Result "0-1"]
[Round "1"]
[TimeControl "180+1"]
[Date "2023.08.08"]
[WhiteClock "0:00:16"]
[BlackClock "0:00:20"]
[Board "237"]

1. d4 {[%clk 0:02:59]}  Nf6 {[%clk 0:02:59]} 2. c4 {[%clk 0:02:59]}  g6 {[%clk 0:02:55]} 3. Nc3 {[%clk 0:02:58]}  d5 {[%clk 0:02:55]} 4. Bf4 {[%clk 0:02:57]}  Bg7 {[%clk 0:02:53]} 5. e3 {[%clk 0:02:56]}  O-O {[%clk 0:02:52]} 6. Nf3 {[%clk 0:02:56]}  dxc4 {[%clk 0:02:49]} 7. Bxc4 {[%clk 0:02:56]}  b6 {[%clk 0:02:47]} 8. O-O {[%clk 0:02:55]}  Bb7 {[%clk 0:02:47]} 9. Qe2 {[%clk 0:02:53]}  Nbd7 {[%clk 0:02:47]} 10. Rac1 {[%clk 0:02:46]}  a6 {[%clk 0:02:34]} 11. h3 {[%clk 0:02:46]}  b5 {[%clk 0:02:34]} 12. Bb3 {[%clk 0:02:45]}  c5 {[%clk 0:02:33]} 13. Rfd1 {[%clk 0:02:43]}  cxd4 {[%clk 0:02:28]} 14. exd4 {[%clk 0:02:39]}  Nb6 {[%clk 0:02:24]} 15. Ne5 {[%clk 0:02:39]}  Nbd5 {[%clk 0:02:22]} 16. Bh2 {[%clk 0:02:35]}  e6 {[%clk 0:02:12]} 17. Nb1 {[%clk 0:02:25]}  Rc8 {[%clk 0:02:11]} 18. a4 {[%clk 0:02:24]}  Qb6 {[%clk 0:02:08]} 19. axb5 {[%clk 0:02:17]}  axb5 {[%clk 0:02:09]} 20. Nc3 {[%clk 0:01:55]}  Nxc3 {[%clk 0:01:45]} 21. bxc3 {[%clk 0:01:54]}  Rfd8 {[%clk 0:01:45]} 22. Re1 {[%clk 0:01:49]}  Bd5 {[%clk 0:01:40]} 23. Qa2 {[%clk 0:01:30]}  Bxb3 {[%clk 0:01:36]} 24. Qxb3 {[%clk 0:01:30]}  Nd5 {[%clk 0:01:37]} 25. Red1 {[%clk 0:01:22]}  Qa5 {[%clk 0:01:26]} 26. c4 {[%clk 0:01:15]}  bxc4 {[%clk 0:01:26]} 27. Rxc4 {[%clk 0:01:15]}  Rxc4 {[%clk 0:01:25]} 28. Qxc4 {[%clk 0:01:15]}  Qc3 {[%clk 0:01:21]} 29. Qb5 {[%clk 0:00:57]}  Qc2 {[%clk 0:01:00]} 30. Rf1 {[%clk 0:00:54]}  Qf5 {[%clk 0:00:58]} 31. Bg3 {[%clk 0:00:53]}  Nf4 {[%clk 0:00:56]} 32. Bxf4 {[%clk 0:00:36]}  Qxf4 {[%clk 0:00:57]} 33. Qb6 {[%clk 0:00:36]}  Rf8 {[%clk 0:00:55]} 34. Re1 {[%clk 0:00:32]}  Qd2 {[%clk 0:00:50]} 35. Nf3 {[%clk 0:00:31]}  Qc3 {[%clk 0:00:48]} 36. Qc5 {[%clk 0:00:30]}  Qb3 {[%clk 0:00:39]} 37. Rc1 {[%clk 0:00:30]}  h6 {[%clk 0:00:34]} 38. Ne5 {[%clk 0:00:30]}  Qb2 {[%clk 0:00:31]} 39. Nd7 {[%clk 0:00:29]}  Rd8 {[%clk 0:00:30]} 40. Qc7 {[%clk 0:00:21]}  Rxd7 {[%clk 0:00:29]} 41. Qc8+ {[%clk 0:00:22]}  Bf8 {[%clk 0:00:24]} 42. Rc2 {[%clk 0:00:22]}  Qxd4 {[%clk 0:00:23]} 43. Kh2 {[%clk 0:00:21]}  Qd6+ {[%clk 0:00:23]} 44. g3 {[%clk 0:00:21]}  Qd1 {[%clk 0:00:23]} 45. Rc1 {[%clk 0:00:21]}  Qd2 {[%clk 0:00:22]} 46. Rc2 {[%clk 0:00:21]}  Qd5 {[%clk 0:00:21]} 47. Qa6 {[%clk 0:00:20]}  h5 {[%clk 0:00:21]} 48. Qe2 {[%clk 0:00:20]}  h4 {[%clk 0:00:21]} 49. Rc4 {[%clk 0:00:20]}  hxg3+ {[%clk 0:00:21]} 50. Kxg3 {[%clk 0:00:21]}  Bd6+ {[%clk 0:00:20]} 51. f4 {[%clk 0:00:20]}  Qf5 {[%clk 0:00:20]} 52. Re4 {[%clk 0:00:19]}  Ra7 {[%clk 0:00:19]} 53. Qf3 {[%clk 0:00:19]}  Ra3 {[%clk 0:00:17]} 54. Re3 {[%clk 0:00:18]}  Qxf4+ {[%clk 0:00:16]} 55. Qxf4 {[%clk 0:00:17]}  Rxe3+ {[%clk 0:00:17]} 56. Kg4 {[%clk 0:00:18]}  Bxf4 {[%clk 0:00:18]} 57. Kxf4 {[%clk 0:00:18]}  Rxh3 {[%clk 0:00:19]} 58. Kg4 {[%clk 0:00:16]}  Rh5 {[%clk 0:00:20]} 0-1


[Site "https://www.chess.com"]

[Event "Titled Tuesday Blitz August 08 Early 2023"]
[White "Czerw, Dawid"]
[Black "Tarnowska, Aleksandra"]
[WhiteFideId "1145746"]
[BlackFideId "1180967"]
[WhiteElo "2558"]
[BlackElo "2163"]
[Result "1-0"]
[Round "1"]
[TimeControl "180+1"]
[Date "2023.08.08"]
[WhiteClock "0:00:35"]
[BlackClock "0:00:00"]
[Board "240"]

1. e4 {[%clk 0:02:59]}  c5 {[%clk 0:02:57]} 2. Nf3 {[%clk 0:02:58]}  e6 {[%clk 0:02:56]} 3. d4 {[%clk 0:02:58]}  cxd4 {[%clk 0:02:56]} 4. Nxd4 {[%clk 0:02:59]}  a6 {[%clk 0:02:56]} 5. a4 {[%clk 0:02:58]}  b6 {[%clk 0:02:46]} 6. Nc3 {[%clk 0:02:55]}  Bb7 {[%clk 0:02:44]} 7. Be3 {[%clk 0:02:56]}  Qc7 {[%clk 0:02:32]} 8. Be2 {[%clk 0:02:53]}  Bb4 {[%clk 0:02:15]} 9. O-O {[%clk 0:02:34]}  Bxc3 {[%clk 0:01:30]} 10. bxc3 {[%clk 0:02:35]}  Bxe4 {[%clk 0:01:31]} 11. Rb1 {[%clk 0:02:25]}  d6 {[%clk 0:01:26]} 12. Bf3 {[%clk 0:02:13]}  Nf6 {[%clk 0:01:09]} 13. Bxe4 {[%clk 0:01:56]}  Nxe4 {[%clk 0:01:10]} 14. Qg4 {[%clk 0:01:56]}  Nxc3 {[%clk 0:00:36]} 15. Qxg7 {[%clk 0:01:55]}  Rf8 {[%clk 0:00:33]} 16. Nxe6 {[%clk 0:01:50]}  Qe7 {[%clk 0:00:20]} 17. Nxf8 {[%clk 0:01:44]}  Nxb1 {[%clk 0:00:13]} 18. Nxh7 {[%clk 0:01:36]}  Na3 {[%clk 0:00:08]} 19. Bg5 {[%clk 0:00:58]}  Qe6 {[%clk 0:00:02]} 20. Qh8+ {[%clk 0:00:35]}  Kd7 {[%clk 0:00:00]} 21. Nf8+ {[%clk 0:00:35]} 1-0


[Site "https://www.chess.com"]

[Event "Titled Tuesday Blitz August 08 Early 2023"]
[White "Butti, Enrique"]
[Black "SmirnovAlexandrA"]
[WhiteFideId "3700470"]
[WhiteElo "2153"]
[BlackElo "2557"]
[Result "0-1"]
[Round "1"]
[TimeControl "180+1"]
[Date "2023.08.08"]
[WhiteClock "0:00:55"]
[BlackClock "0:01:36"]
[Board "243"]

1. d4 {[%clk 0:02:58]}  Nf6 {[%clk 0:02:55]} 2. c4 {[%clk 0:02:57]}  g6 {[%clk 0:02:55]} 3. Nc3 {[%clk 0:02:56]}  Bg7 {[%clk 0:02:55]} 4. e4 {[%clk 0:02:56]}  O-O {[%clk 0:02:55]} 5. Be2 {[%clk 0:02:56]}  d6 {[%clk 0:02:55]} 6. Nf3 {[%clk 0:02:55]}  c5 {[%clk 0:02:55]} 7. d5 {[%clk 0:02:54]}  e6 {[%clk 0:02:54]} 8. O-O {[%clk 0:02:52]}  exd5 {[%clk 0:02:54]} 9. cxd5 {[%clk 0:02:52]}  Re8 {[%clk 0:02:54]} 10. Nd2 {[%clk 0:02:51]}  a6 {[%clk 0:02:53]} 11. a4 {[%clk 0:02:50]}  Nbd7 {[%clk 0:02:53]} 12. Re1 {[%clk 0:02:46]}  Rb8 {[%clk 0:02:48]} 13. Bf1 {[%clk 0:02:44]}  Ne5 {[%clk 0:02:44]} 14. f4 {[%clk 0:02:37]}  Neg4 {[%clk 0:02:42]} 15. h3 {[%clk 0:02:36]}  c4 {[%clk 0:02:25]} 16. Nxc4 {[%clk 0:02:21]}  b5 {[%clk 0:02:24]} 17. axb5 {[%clk 0:02:20]}  axb5 {[%clk 0:02:25]} 18. Ne3 {[%clk 0:01:58]}  Nxe3 {[%clk 0:02:23]} 19. Bxe3 {[%clk 0:01:54]}  b4 {[%clk 0:02:24]} 20. Nb5 {[%clk 0:01:48]}  Nxe4 {[%clk 0:02:24]} 21. Qb3 {[%clk 0:01:42]}  Qh4 {[%clk 0:02:09]} 22. Qxb4 {[%clk 0:01:28]}  Bh6 {[%clk 0:01:58]} 23. Qa3 {[%clk 0:01:17]}  Bxf4 {[%clk 0:01:45]} 24. Bxf4 {[%clk 0:01:16]}  Qxf4 {[%clk 0:01:46]} 25. Qf3 {[%clk 0:01:15]}  Qe5 {[%clk 0:01:43]} 26. Nxd6 {[%clk 0:01:07]}  Qd4+ {[%clk 0:01:40]} 27. Kh2 {[%clk 0:00:55]}  Nxd6 {[%clk 0:01:36]} 0-1


[Site "https://www.chess.com"]

[Event "Titled Tuesday Blitz August 08 Early 2023"]
[White "Feliz Dotel, Dewar Bienvenido"]
[Black "FoxOnTheRun97"]
[WhiteFideId "6402801"]
[WhiteElo "2145"]
[BlackElo "2555"]
[Result "0-1"]
[Round "1"]
[TimeControl "180+1"]
[Date "2023.08.08"]
[WhiteClock "0:00:07"]
[BlackClock "0:00:34"]
[Board "245"]

1. d4 {[%clk 0:02:54]}  Nf6 {[%clk 0:02:59]} 2. e3 {[%clk 0:02:54]}  d5 {[%clk 0:02:56]} 3. Nf3 {[%clk 0:02:54]}  Bf5 {[%clk 0:02:55]} 4. Bd3 {[%clk 0:02:53]}  Bg6 {[%clk 0:02:53]} 5. c4 {[%clk 0:02:52]}  c6 {[%clk 0:02:50]} 6. O-O {[%clk 0:02:52]}  e6 {[%clk 0:02:49]} 7. b3 {[%clk 0:02:50]}  Bd6 {[%clk 0:02:42]} 8. Nc3 {[%clk 0:02:40]}  Nbd7 {[%clk 0:02:40]} 9. Bb2 {[%clk 0:02:40]}  Qe7 {[%clk 0:02:40]} 10. Re1 {[%clk 0:02:38]}  Ba3 {[%clk 0:02:38]} 11. Bxa3 {[%clk 0:02:28]}  Qxa3 {[%clk 0:02:39]} 12. e4 {[%clk 0:02:25]}  dxc4 {[%clk 0:02:19]} 13. Bxc4 {[%clk 0:02:10]}  O-O {[%clk 0:02:17]} 14. d5 {[%clk 0:01:57]}  exd5 {[%clk 0:01:55]} 15. exd5 {[%clk 0:01:56]}  Nb6 {[%clk 0:01:49]} 16. dxc6 {[%clk 0:01:46]}  bxc6 {[%clk 0:01:50]} 17. Bf1 {[%clk 0:01:30]}  Rad8 {[%clk 0:01:48]} 18. Qc1 {[%clk 0:01:30]}  Qa5 {[%clk 0:01:40]} 19. Ne5 {[%clk 0:01:18]}  Rd6 {[%clk 0:01:28]} 20. Nxg6 {[%clk 0:00:58]}  hxg6 {[%clk 0:01:29]} 21. Ne4 {[%clk 0:00:52]}  Nxe4 {[%clk 0:01:25]} 22. Rxe4 {[%clk 0:00:52]}  Qf5 {[%clk 0:01:21]} 23. Rf4 {[%clk 0:00:43]}  Qe5 {[%clk 0:01:17]} 24. h3 {[%clk 0:00:32]}  Rfd8 {[%clk 0:01:15]} 25. Rf3 {[%clk 0:00:29]}  Nd5 {[%clk 0:01:04]} 26. Rb1 {[%clk 0:00:25]}  g5 {[%clk 0:00:51]} 27. Bc4 {[%clk 0:00:24]}  Nf4 {[%clk 0:00:50]} 28. Re3 {[%clk 0:00:17]}  Qf5 {[%clk 0:00:42]} 29. Qe1 {[%clk 0:00:17]}  Rf6 {[%clk 0:00:35]} 30. Re8+ {[%clk 0:00:16]}  Rxe8 {[%clk 0:00:35]} 31. Qxe8+ {[%clk 0:00:17]}  Kh7 {[%clk 0:00:36]} 32. Qe3 {[%clk 0:00:14]}  Qxb1+ {[%clk 0:00:35]} 33. Kh2 {[%clk 0:00:14]}  Qf5 {[%clk 0:00:35]} 34. g3 {[%clk 0:00:14]}  Ng6 {[%clk 0:00:33]} 35. Bd3 {[%clk 0:00:13]}  Qxf2+ {[%clk 0:00:33]} 36. Qxf2 {[%clk 0:00:13]}  Rxf2+ {[%clk 0:00:33]} 37. Kg1 {[%clk 0:00:14]}  Rxa2 {[%clk 0:00:34]} 38. h4 {[%clk 0:00:07]}  Kh6 {[%clk 0:00:34]} 0-1


[Site "https://www.chess.com"]

[Event "Titled Tuesday Blitz August 08 Early 2023"]
[White "Al-Tarboush, Ward"]
[Black "Putri, Regita Desyari"]
[WhiteFideId "7601450"]
[BlackFideId "7109083"]
[WhiteElo "2555"]
[BlackElo "2145"]
[Result "1-0"]
[Round "1"]
[TimeControl "180+1"]
[Date "2023.08.08"]
[WhiteClock "0:01:12"]
[BlackClock "0:00:00"]
[Board "246"]

1. e4 {[%clk 0:02:51]}  e5 {[%clk 0:02:59]} 2. Nf3 {[%clk 0:02:49]}  Nc6 {[%clk 0:02:59]} 3. Bb5 {[%clk 0:02:49]}  a6 {[%clk 0:02:58]} 4. Ba4 {[%clk 0:02:45]}  Nf6 {[%clk 0:02:58]} 5. O-O {[%clk 0:02:45]}  Be7 {[%clk 0:02:57]} 6. d3 {[%clk 0:02:45]}  b5 {[%clk 0:02:56]} 7. Bb3 {[%clk 0:02:44]}  d6 {[%clk 0:02:56]} 8. a3 {[%clk 0:02:42]}  O-O {[%clk 0:02:48]} 9. Nc3 {[%clk 0:02:41]}  Bg4 {[%clk 0:02:47]} 10. Be3 {[%clk 0:02:39]}  h6 {[%clk 0:02:36]} 11. h3 {[%clk 0:02:38]}  Be6 {[%clk 0:02:36]} 12. Nd5 {[%clk 0:02:37]}  Na5 {[%clk 0:02:02]} 13. Nxf6+ {[%clk 0:02:33]}  Bxf6 {[%clk 0:02:01]} 14. Bxe6 {[%clk 0:02:31]}  fxe6 {[%clk 0:02:02]} 15. b4 {[%clk 0:02:17]}  Nc6 {[%clk 0:02:00]} 16. c3 {[%clk 0:02:17]}  d5 {[%clk 0:01:56]} 17. Qb3 {[%clk 0:02:13]}  Kh8 {[%clk 0:01:53]} 18. Rad1 {[%clk 0:02:12]}  Qd7 {[%clk 0:01:08]} 19. Rfe1 {[%clk 0:01:55]}  Rad8 {[%clk 0:00:51]} 20. Bc5 {[%clk 0:01:55]}  Rfe8 {[%clk 0:00:48]} 21. a4 {[%clk 0:01:50]}  Rb8 {[%clk 0:00:38]} 22. axb5 {[%clk 0:01:50]}  Rxb5 {[%clk 0:00:39]} 23. c4 {[%clk 0:01:48]}  Rb7 {[%clk 0:00:37]} 24. exd5 {[%clk 0:01:48]}  exd5 {[%clk 0:00:37]} 25. cxd5 {[%clk 0:01:48]}  Nxb4 {[%clk 0:00:31]} 26. Bxb4 {[%clk 0:01:46]}  a5 {[%clk 0:00:31]} 27. d4 {[%clk 0:01:41]}  e4 {[%clk 0:00:22]} 28. Ne5 {[%clk 0:01:30]}  Bxe5 {[%clk 0:00:21]} 29. dxe5 {[%clk 0:01:31]}  Rxb4 {[%clk 0:00:22]} 30. Qg3 {[%clk 0:01:26]}  a4 {[%clk 0:00:03]} 31. e6 {[%clk 0:01:26]}  Qd6 {[%clk 0:00:03]} 32. Qg6 {[%clk 0:01:25]}  Re7 {[%clk 0:00:03]} 33. Rxe4 {[%clk 0:01:23]}  Rb5 {[%clk 0:00:02]} 34. Rf4 {[%clk 0:01:22]}  Rb8 {[%clk 0:00:01]} 35. Rxa4 {[%clk 0:01:18]}  c6 {[%clk 0:00:01]} 36. Rad4 {[%clk 0:01:12]}  cxd5 {[%clk 0:00:02]} 37. Rxd5 {[%clk 0:01:13]}  Qxe6 {[%clk 0:00:02]} 38. Rd8+ {[%clk 0:01:13]}  Re8 {[%clk 0:00:03]} 39. Qxe6 {[%clk 0:01:14]}  Rbxd8 {[%clk 0:00:01]} 40. Rxd8 {[%clk 0:01:13]}  Rxd8 {[%clk 0:00:02]} 41. g4 {[%clk 0:01:13]}  Rf8 {[%clk 0:00:03]} 42. Kg2 {[%clk 0:01:13]}  Rf6 {[%clk 0:00:04]} 43. Qe8+ {[%clk 0:01:13]}  Kh7 {[%clk 0:00:04]} 44. Kg3 {[%clk 0:01:14]}  Rd6 {[%clk 0:00:00]} 45. Qe4+ {[%clk 0:01:12]} 1-0


[Site "https://www.chess.com"]

[Event "Titled Tuesday Blitz August 08 Early 2023"]
[White "Olivares Olivares, Claudio"]
[Black "Novita, Anjas"]
[WhiteFideId "3400786"]
[BlackFideId "7100949"]
[WhiteElo "2553"]
[BlackElo "2127"]
[Result "1-0"]
[Round "1"]
[TimeControl "180+1"]
[Date "2023.08.08"]
[WhiteClock "0:01:36"]
[BlackClock "0:00:00"]
[Board "248"]

1. e4 {[%clk 0:02:59]}  d5 {[%clk 0:02:57]} 2. exd5 {[%clk 0:02:59]}  Nf6 {[%clk 0:02:57]} 3. Nf3 {[%clk 0:02:57]}  Bg4 {[%clk 0:02:57]} 4. h3 {[%clk 0:02:57]}  Bh5 {[%clk 0:02:57]} 5. Bb5+ {[%clk 0:02:57]}  Nbd7 {[%clk 0:02:56]} 6. Nc3 {[%clk 0:02:55]}  a6 {[%clk 0:02:56]} 7. Be2 {[%clk 0:02:55]}  Nb6 {[%clk 0:02:55]} 8. d4 {[%clk 0:02:54]}  Nbxd5 {[%clk 0:02:55]} 9. O-O {[%clk 0:02:53]}  e6 {[%clk 0:02:54]} 10. Nxd5 {[%clk 0:02:53]}  exd5 {[%clk 0:02:53]} 11. Re1 {[%clk 0:02:53]}  Be7 {[%clk 0:02:53]} 12. Bf4 {[%clk 0:02:53]}  O-O {[%clk 0:02:54]} 13. Ne5 {[%clk 0:02:54]}  Bxe2 {[%clk 0:02:50]} 14. Qxe2 {[%clk 0:02:54]}  Re8 {[%clk 0:02:49]} 15. c4 {[%clk 0:02:53]}  c6 {[%clk 0:02:40]} 16. Rad1 {[%clk 0:02:51]}  dxc4 {[%clk 0:02:36]} 17. Qxc4 {[%clk 0:02:51]}  Nd5 {[%clk 0:02:33]} 18. Bg3 {[%clk 0:02:51]}  Bd6 {[%clk 0:02:03]} 19. Qb3 {[%clk 0:02:42]}  Rb8 {[%clk 0:01:54]} 20. Qf3 {[%clk 0:02:38]}  Qc7 {[%clk 0:01:47]} 21. Nc4 {[%clk 0:02:22]}  Bxg3 {[%clk 0:01:44]} 22. fxg3 {[%clk 0:02:23]}  Re7 {[%clk 0:01:29]} 23. Re5 {[%clk 0:02:22]}  Rbe8 {[%clk 0:01:23]} 24. Rde1 {[%clk 0:02:22]}  f6 {[%clk 0:01:20]} 25. R5e4 {[%clk 0:02:21]}  h6 {[%clk 0:00:57]} 26. Kh2 {[%clk 0:02:21]}  Rxe4 {[%clk 0:00:44]} 27. Rxe4 {[%clk 0:02:20]}  Rxe4 {[%clk 0:00:44]} 28. Qxe4 {[%clk 0:02:21]}  Qe7 {[%clk 0:00:44]} 29. Qf5 {[%clk 0:02:18]}  Nb4 {[%clk 0:00:12]} 30. a3 {[%clk 0:02:13]}  Nd5 {[%clk 0:00:12]} 31. Na5 {[%clk 0:02:13]}  Kf7 {[%clk 0:00:10]} 32. Qc8 {[%clk 0:02:11]}  Ne3 {[%clk 0:00:08]} 33. Qxb7 {[%clk 0:01:59]}  Qxb7 {[%clk 0:00:07]} 34. Nxb7 {[%clk 0:02:00]}  Nc2 {[%clk 0:00:08]} 35. Nc5 {[%clk 0:01:57]}  Nxd4 {[%clk 0:00:07]} 36. Nxa6 {[%clk 0:01:56]}  Ke6 {[%clk 0:00:07]} 37. Nb4 {[%clk 0:01:47]}  c5 {[%clk 0:00:05]} 38. Nd3 {[%clk 0:01:47]}  Kd5 {[%clk 0:00:05]} 39. Nf4+ {[%clk 0:01:47]}  Kc4 {[%clk 0:00:04]} 40. a4 {[%clk 0:01:36]}  Kb3 {[%clk 0:00:04]} 41. a5 {[%clk 0:01:36]}  Kxb2 {[%clk 0:00:00]} 42. Nd3+ {[%clk 0:01:36]} 1-0


[Site "https://www.chess.com"]

[Event "Titled Tuesday Blitz August 08 Early 2023"]
[White "Fominykh, Maria"]
[Black "Degenbaev, Aziz"]
[WhiteFideId "4142411"]
[BlackFideId "13802640"]
[WhiteElo "2126"]
[BlackElo "2552"]
[Result "1-0"]
[Round "1"]
[TimeControl "180+1"]
[Date "2023.08.08"]
[WhiteClock "0:00:14"]
[BlackClock "0:01:08"]
[Board "249"]

1. d4 {[%clk 0:03:00]}  g6 {[%clk 0:02:53]} 2. c4 {[%clk 0:03:00]}  Bg7 {[%clk 0:02:52]} 3. Nc3 {[%clk 0:03:00]}  d6 {[%clk 0:02:53]} 4. Nf3 {[%clk 0:03:00]}  Nc6 {[%clk 0:02:53]} 5. h3 {[%clk 0:02:56]}  e5 {[%clk 0:02:53]} 6. d5 {[%clk 0:02:56]}  Nce7 {[%clk 0:02:48]} 7. e4 {[%clk 0:02:56]}  h6 {[%clk 0:02:48]} 8. Bd3 {[%clk 0:02:46]}  f5 {[%clk 0:02:48]} 9. Qc2 {[%clk 0:02:19]}  Nf6 {[%clk 0:02:47]} 10. Nh4 {[%clk 0:02:12]}  f4 {[%clk 0:02:41]} 11. g4 {[%clk 0:01:58]}  fxg3 {[%clk 0:02:40]} 12. fxg3 {[%clk 0:01:58]}  O-O {[%clk 0:02:39]} 13. Be3 {[%clk 0:01:46]}  Nh5 {[%clk 0:02:31]} 14. Qg2 {[%clk 0:01:39]}  c6 {[%clk 0:02:10]} 15. O-O-O {[%clk 0:01:29]}  Bd7 {[%clk 0:02:07]} 16. Be2 {[%clk 0:01:20]}  Nf6 {[%clk 0:02:05]} 17. dxc6 {[%clk 0:01:01]}  Bxc6 {[%clk 0:02:06]} 18. c5 {[%clk 0:01:02]}  Rc8 {[%clk 0:01:43]} 19. cxd6 {[%clk 0:00:57]}  Nf5 {[%clk 0:01:27]} 20. Bc4+ {[%clk 0:00:29]}  Kh7 {[%clk 0:01:24]} 21. Nxf5 {[%clk 0:00:28]}  gxf5 {[%clk 0:01:24]} 22. Kb1 {[%clk 0:00:25]}  Nxe4 {[%clk 0:01:24]} 23. Be6 {[%clk 0:00:23]}  Nxc3+ {[%clk 0:01:22]} 24. bxc3 {[%clk 0:00:21]}  Bxg2 {[%clk 0:01:23]} 25. Bxc8 {[%clk 0:00:21]}  Bxh1 {[%clk 0:01:18]} 26. d7 {[%clk 0:00:19]}  Be4+ {[%clk 0:01:19]} 27. Kb2 {[%clk 0:00:18]}  f4 {[%clk 0:01:17]} 28. gxf4 {[%clk 0:00:18]}  exf4 {[%clk 0:01:17]} 29. Bxa7 {[%clk 0:00:18]}  Bxc3+ {[%clk 0:01:16]} 30. Kxc3 {[%clk 0:00:17]}  Qa5+ {[%clk 0:01:16]} 31. Kd4 {[%clk 0:00:15]}  Qxa7+ {[%clk 0:01:16]} 32. Kxe4 {[%clk 0:00:15]}  Qa4+ {[%clk 0:01:16]} 33. Rd4 {[%clk 0:00:15]}  Qd1 {[%clk 0:01:08]} 34. Rxd1 {[%clk 0:00:14]} 1-0


[Site "https://www.chess.com"]

[Event "Titled Tuesday Blitz August 08 Early 2023"]
[White "Colbow, Collin"]
[Black "Haukenfrers, Dale"]
[WhiteFideId "16201132"]
[BlackFideId "2603780"]
[WhiteElo "2551"]
[BlackElo "2109"]
[Result "1-0"]
[Round "1"]
[TimeControl "180+1"]
[Date "2023.08.08"]
[WhiteClock "0:00:37"]
[BlackClock "0:00:44"]
[Board "250"]

1. d4 {[%clk 0:02:40]}  d6 {[%clk 0:03:00]} 2. Bf4 {[%clk 0:02:36]}  c6 {[%clk 0:03:00]} 3. Nf3 {[%clk 0:02:36]}  Nf6 {[%clk 0:02:58]} 4. e3 {[%clk 0:02:35]}  Rg8 {[%clk 0:02:57]} 5. h3 {[%clk 0:02:35]}  g5 {[%clk 0:02:56]} 6. Bxg5 {[%clk 0:02:34]}  Rxg5 {[%clk 0:02:55]} 7. Nxg5 {[%clk 0:02:33]}  Qa5+ {[%clk 0:02:56]} 8. Nc3 {[%clk 0:02:31]}  Qxg5 {[%clk 0:02:56]} 9. Qd2 {[%clk 0:02:24]}  Na6 {[%clk 0:02:52]} 10. O-O-O {[%clk 0:02:23]}  Nb4 {[%clk 0:02:47]} 11. a3 {[%clk 0:02:19]}  Na6 {[%clk 0:02:47]} 12. g4 {[%clk 0:02:19]}  Bg7 {[%clk 0:02:38]} 13. f4 {[%clk 0:02:19]}  Qa5 {[%clk 0:02:37]} 14. Kb1 {[%clk 0:02:13]}  Rb8 {[%clk 0:02:20]} 15. Bg2 {[%clk 0:02:12]}  Bd7 {[%clk 0:01:55]} 16. g5 {[%clk 0:02:12]}  Nd5 {[%clk 0:01:55]} 17. Nxd5 {[%clk 0:02:08]}  Qxd2 {[%clk 0:01:54]} 18. Rxd2 {[%clk 0:02:06]}  cxd5 {[%clk 0:01:54]} 19. Bxd5 {[%clk 0:02:06]}  b5 {[%clk 0:01:49]} 20. Be4 {[%clk 0:02:02]}  b4 {[%clk 0:01:45]} 21. axb4 {[%clk 0:02:03]}  Nxb4 {[%clk 0:01:43]} 22. Bxh7 {[%clk 0:02:00]}  a5 {[%clk 0:01:36]} 23. e4 {[%clk 0:01:40]}  a4 {[%clk 0:01:34]} 24. c3 {[%clk 0:01:41]}  Nc6 {[%clk 0:01:30]} 25. Ka2 {[%clk 0:01:27]}  Na5 {[%clk 0:01:28]} 26. Bf5 {[%clk 0:01:09]}  Bxf5 {[%clk 0:01:17]} 27. exf5 {[%clk 0:01:10]}  Rb5 {[%clk 0:01:14]} 28. d5 {[%clk 0:00:49]}  Nc4 {[%clk 0:01:13]} 29. Re2 {[%clk 0:00:50]}  Rxd5 {[%clk 0:01:12]} 30. Rhe1 {[%clk 0:00:50]}  Bf8 {[%clk 0:01:05]} 31. f6 {[%clk 0:00:49]}  e6 {[%clk 0:01:04]} 32. Re4 {[%clk 0:00:47]}  Nd2 {[%clk 0:01:01]} 33. Rxa4 {[%clk 0:00:45]}  Rd3 {[%clk 0:00:52]} 34. Ra8+ {[%clk 0:00:44]}  Kd7 {[%clk 0:00:52]} 35. Rxf8 {[%clk 0:00:42]}  Rd5 {[%clk 0:00:52]} 36. Rxf7+ {[%clk 0:00:40]}  Kc6 {[%clk 0:00:52]} 37. Ra7 {[%clk 0:00:41]}  Rf5 {[%clk 0:00:49]} 38. Re2 {[%clk 0:00:38]}  Kb6 {[%clk 0:00:47]} 39. Rxd2 {[%clk 0:00:35]}  Kxa7 {[%clk 0:00:47]} 40. Rxd6 {[%clk 0:00:36]}  Rxf4 {[%clk 0:00:46]} 41. Rxe6 {[%clk 0:00:36]}  Re4 {[%clk 0:00:44]} 42. Rxe4 {[%clk 0:00:36]}  Ka6 {[%clk 0:00:45]} 43. Rb4 {[%clk 0:00:36]}  Ka5 {[%clk 0:00:45]} 44. f7 {[%clk 0:00:36]}  Ka6 {[%clk 0:00:45]} 45. f8=Q {[%clk 0:00:37]}  Ka5 {[%clk 0:00:44]} 46. Qa8# {[%clk 0:00:37]} 1-0


[Site "https://www.chess.com"]